fUST/lending_fUST_20250811
["ID","MTS","AMOUNT","RATE_DAILY","PERIOD"]
[378610344,1754925057341,-460.0,0.00019452,2]
[378610345,1754925057351,-460.0,0.00019452,2]
[378610346,1754925057361,-460.0,0.00019452,2]
[378610347,1754925057370,-478.84656231,0.00019452,2]
[378610348,1754925057380,-460.0,0.00019452,2]
[378610349,1754925057390,-460.0,0.00019452,2]
[378610350,1754925057399,-460.0,0.00019452,2]
[378610351,1754925057408,-583.91,0.00019452,2]
[378610352,1754925057418,-460.0,0.00019452,2]
[378610353,1754925057429,-460.0,0.00019452,2]
[378610354,1754925057438,-460.0,0.00019452,2]
[378610355,1754925057450,-460.0,0.00019452,2]
[378610356,1754925057460,-460.0,0.00019452,2]
[378610357,1754925057470,-342.81015682,0.00019452,2]
[378610358,1754925057480,-2007.4,0.00019452,2]
[378610359,1754925057490,-460.0,0.00019452,2]
[378610360,1754925057500,-460.0,0.00019452,2]
[378610361,1754925057510,-1867.87,0.00019452,2]
[378610362,1754925057520,-934.23,0.00019452,2]
[378610363,1754925057530,-858.13,0.00019452,2]
[378610364,1754925057540,-429.81000053,0.00019452,2]
[378610365,1754925057550,-1075.34,0.00019452,2]
[378610366,1754925057568,-460.0,0.00019452,2]
[378610367,1754925057581,-460.0,0.00019452,2]
[378610368,1754925057592,-460.0,0.00019452,2]
[378610369,1754925057603,-460.0,0.00019452,2]
[378610370,1754925057614,-460.0,0.00019452,2]
[378610371,1754925057626,-460.0,0.00019452,2]
[378610372,1754925057638,-460.0,0.00019452,2]
[378610373,1754925057650,-460.0,0.00019452,2]
[378610374,1754925057662,-460.0,0.00019452,2]
[378610375,1754925057673,-460.0,0.00019452,2]
[378610376,1754925057685,-460.0,0.00019452,2]
[378610377,1754925057696,-460.0,0.00019452,2]
[378610378,1754925057711,-460.0,0.00019452,2]
[378610379,1754925057721,-460.0,0.00019452,2]
[378610380,1754925057732,-460.0,0.00019452,2]
[378610381,1754925057743,-460.0,0.00019452,2]
[378610382,1754925057755,-460.0,0.00019452,2]
[378610383,1754925057766,-460.0,0.00019452,2]
[378610384,1754925057777,-460.0,0.00019452,2]
[378610385,1754925057787,-1126.16,0.00019452,2]
[378610386,1754925057798,-515.88,0.00019452,2]
[378610387,1754925057809,-460.0,0.00019452,2]
[378610388,1754925057820,-460.0,0.00019452,2]
[378610389,1754925057830,-460.0,0.00019452,2]
[378610390,1754925057841,-460.0,0.00019452,2]
[378610391,1754925057851,-1367.99,0.00019452,2]
[378610392,1754925057863,-460.0,0.00019452,2]
[378610393,1754925057874,-460.0,0.00019452,2]
[378610394,1754925057885,-460.0,0.00019452,2]
[378610395,1754925057896,-460.0,0.00019452,2]
[378610396,1754925057906,-460.0,0.00019452,2]
[378610397,1754925057917,-151.0,0.00019452,2]
[378610398,1754925057927,-3864.11,0.00019452,2]
[378610399,1754925057937,-460.0,0.00019452,2]
[378610400,1754925057950,-460.0,0.00019452,2]
[378610401,1754925057961,-460.0,0.00019452,2]
[378610402,1754925057972,-1125.61,0.00019452,2]
[378610403,1754925057982,-460.0,0.00019452,2]
[378610404,1754925057993,-460.0,0.00019452,2]
[378610405,1754925058006,-470.45145204,0.00019452,2]
[378610406,1754925058018,-713.92,0.00019452,2]
[378610407,1754925058029,-460.74180666,0.00019452,2]
[378610408,1754925058039,-460.0,0.00019452,2]
[378610409,1754925058050,-484.98536871,0.00019452,2]
[378610410,1754925058060,-460.0,0.00019452,2]
[378610411,1754925058071,-604.51,0.00019452,2]
[378610412,1754925058082,-460.0,0.00019452,2]
[378610413,1754925058092,-460.0,0.00019452,2]
[378610414,1754925058102,-460.0,0.00019452,2]
[378610415,1754925058112,-460.0,0.00019452,2]
[378610416,1754925058123,-4851.07,0.00019452,2]
[378610417,1754925058132,-460.0,0.00019452,2]
[378610418,1754925058142,-1106.67,0.00019452,2]
[378610419,1754925058153,-1029.64,0.00019452,2]
[378610420,1754925058163,-460.0,0.00019452,2]
[378610421,1754925058173,-460.0,0.00019452,2]
[378610422,1754925058188,-2016.48,0.00019452,2]
[378610423,1754925058201,-574.89,0.00019452,2]
[378610424,1754925058212,-670.14,0.00019452,2]
[378610425,1754925058224,-460.0,0.00019452,2]
[378610426,1754925058235,-460.0,0.00019452,2]
[378610427,1754925058247,-463.60273293,0.00019452,2]
[378610428,1754925058259,-460.0,0.00019452,2]
[378610429,1754925058271,-703.35,0.00019452,2]
[378610430,1754925058281,-460.0,0.00019452,2]
[378610431,1754925058292,-551.04,0.00019452,2]
[378610432,1754925058304,-460.0,0.00019452,2]
[378610433,1754925058315,-3261.54,0.00019452,2]
[378610434,1754925058327,-460.0,0.00019452,2]
[378610435,1754925058340,-460.0,0.00019452,2]
[378610436,1754925058592,-460.0,0.00019452,2]
[378610437,1754925058602,-687.44,0.00019452,2]
[378610438,1754925058612,-3351.13,0.00019452,2]
[378610439,1754925058622,-1040.7,0.00019452,2]
[378610440,1754925058631,-460.0,0.00019452,2]
[378610441,1754925058640,-460.0,0.00019452,2]
[378610442,1754925058651,-460.0,0.00019452,2]
[378610443,1754925058660,-460.0,0.00019452,2]
[378610444,1754925058670,-460.0,0.00019452,2]
[378610445,1754925058680,-406.07562561,0.00019452,2]
[378610446,1754925058689,-4190.48,0.00019452,2]
[378610447,1754925058701,-460.0,0.00019452,2]
[378610448,1754925058711,-460.0,0.00019452,2]
[378610449,1754925058722,-460.0,0.00019452,2]
[378610450,1754925058731,-230.86277338,0.00019452,2]
[378610451,1754925058741,-1150.17,0.00019452,2]
[378610452,1754925058750,-460.0,0.00019452,2]
[378610453,1754925058760,-1601.22,0.00019452,2]
[378610454,1754925058770,-346.50092466,0.00019452,2]
[378610455,1754925058779,-663.18,0.00019452,2]
[378610456,1754925058789,-460.0,0.00019452,2]
[378610457,1754925058798,-460.0,0.00019452,2]
[378610458,1754925058811,-460.0,0.00019452,2]
[378610459,1754925058821,-460.0,0.00019452,2]
[378610460,1754925058830,-708.48,0.00019452,2]
[378610461,1754925058840,-767.38,0.00019452,2]
[378610462,1754925058849,-460.0,0.00019452,2]
[378610463,1754925058859,-932.4,0.00019452,2]
[378610464,1754925058868,-460.0,0.00019452,2]
[378610465,1754925058878,-460.0,0.00019452,2]
[378610466,1754925058887,-460.0,0.00019452,2]
[378610467,1754925058897,-460.0,0.00019452,2]
[378610468,1754925058906,-460.0,0.00019452,2]
[378610469,1754925058916,-460.0,0.00019452,2]
[378610470,1754925058925,-519.80261382,0.00019452,2]
[378610471,1754925058935,-460.0,0.00019452,2]
[378610472,1754925058944,-3717.91,0.00019452,2]
[378610473,1754925058956,-460.0,0.00019452,2]
[378610474,1754925058966,-460.0,0.00019452,2]
[378610475,1754925058976,-760.25,0.00019452,2]
[378610476,1754925058986,-460.0,0.00019452,2]
[378610477,1754925058996,-460.0,0.00019452,2]
[378610478,1754925059011,-460.0,0.00019452,2]
[378610479,1754925059020,-751.19,0.00019452,2]
[378610480,1754925059030,-383.04788146,0.00019452,2]
[378610481,1754925059039,-460.0,0.00019452,2]
[378610482,1754925059049,-460.0,0.00019452,2]
[378610483,1754925059058,-460.0,0.00019452,2]
[378610484,1754925059067,-460.0,0.00019452,2]
[378610485,1754925059077,-460.0,0.00019452,2]
[378610486,1754925059087,-1302.24,0.00019452,2]
[378610487,1754925059097,-460.0,0.00019452,2]
[378610488,1754925059106,-460.0,0.00019452,2]
[378610489,1754925059116,-460.0,0.00019452,2]
[378610490,1754925059126,-460.0,0.00019452,2]
[378610491,1754925059135,-495.94,0.00019452,2]
[378610492,1754925059145,-500.0,0.00019473,2]
[378610493,1754925059154,-160.0,0.00019474,2]
[378610494,1754925059163,-461.69158338,0.00019474,2]
[378610495,1754925059173,-215.4905783,0.00019474,2]
[378610496,1754925059182,-843.18994796,0.00019475,2]
[378610497,1754925059192,-417.15472785,0.00019475,2]
[378610498,1754925059203,-160.0,0.00019475,2]
[378610499,1754925059212,-160.0,0.00019475,2]
[378610500,1754925059221,-160.0,0.00019475,2]
[378610501,1754925059230,-160.0,0.00019475,2]
[378610502,1754925059240,-216.68257536,0.00019475,2]
[378610503,1754925059249,-160.0,0.00019475,2]
[378610504,1754925059258,-527.9539256,0.00019475,2]
[378610505,1754925059268,-160.0,0.00019475,2]
[378610506,1754925059277,-231.9940742,0.00019475,2]
[378610507,1754925059286,-12671.21867243,0.00019475,2]
[378610508,1754925059295,-151.0,0.000195,2]
[378610509,1754925059305,-151.0,0.000196,2]
[378610510,1754925059315,-473.66,0.00019603,2]
[378610511,1754925059324,-6563.66283792,0.00019626,2]
[378610512,1754925059333,-151.0,0.000197,2]
[378610513,1754925059343,-515.0,0.000197,2]
[378610514,1754925059352,-500.0,0.00019706,2]
[378610515,1754925059362,-160.0,0.00019718,2]
[378610516,1754925059371,-1200.0,0.00019721,2]
[378610517,1754925059381,-682.73139457,0.00019721,2]
[378610518,1754925059390,-315.70916756,0.00019721,2]
[378610519,1754925059399,-1000.0,0.00019721,2]
[378610520,1754925059408,-1000.0,0.00019721,2]
[378610521,1754925059418,-1000.0,0.00019721,2]
[378610522,1754925059427,-1000.0,0.00019721,2]
[378610523,1754925059436,-505.8544426,0.00019721,2]
[378610524,1754925059446,-500.0,0.00019721,2]
[378610525,1754925059460,-1000.0,0.00019721,2]
[378610526,1754925059469,-1000.0,0.00019721,2]
[378610527,1754925059479,-1000.0,0.00019721,2]
[378610528,1754925059500,-1000.0,0.00019721,2]
[378610529,1754925059511,-1000.0,0.00019721,2]
[378610530,1754925059522,-1000.0,0.00019721,2]
[378610531,1754925059532,-151.747423,0.00019726,2]
[378610532,1754925059542,-211.224142,0.00019726,2]
[378610533,1754925059552,-211.224142,0.00019726,2]
[378610534,1754925059562,-151.861524,0.00019726,2]
[378610535,1754925059572,-154.781183,0.00019726,2]
[378610536,1754925059583,-154.781183,0.00019726,2]
[378610537,1754925059593,-460.0,0.00019726,2]
[378610538,1754925059603,-460.0,0.00019726,2]
[378610539,1754925059613,-460.0,0.00019726,2]
[378610540,1754925059623,-460.0,0.00019726,2]
[378610541,1754925059633,-460.0,0.00019726,2]
[378610542,1754925059643,-460.0,0.00019726,2]
[378610543,1754925059653,-460.0,0.00019726,2]
[378610544,1754925059663,-460.0,0.00019726,2]
[378610545,1754925059672,-460.0,0.00019726,2]
[378610546,1754925059682,-460.0,0.00019726,2]
[378610547,1754925059692,-460.0,0.00019726,2]
[378610548,1754925059703,-460.0,0.00019726,2]
[378610549,1754925059713,-460.0,0.00019726,2]
[378610550,1754925059723,-908.01,0.00019726,2]
[378610551,1754925059732,-460.0,0.00019726,2]
[378610552,1754925059742,-738.02,0.00019726,2]
[378610553,1754925059753,-460.0,0.00019726,2]
[378610554,1754925059763,-551.34,0.00019726,2]
[378610555,1754925059773,-453.71963572,0.00019726,2]
[378610556,1754925059782,-460.0,0.00019726,2]
[378610557,1754925059792,-460.0,0.00019726,2]
[378610558,1754925059802,-483.59,0.00019726,2]
[378610559,1754925059812,-917.33114,0.00019726,2]
[378610560,1754925059821,-490.66,0.00019726,2]
[378610561,1754925059831,-917.33114,0.00019726,2]
[378610562,1754925059841,-550.69,0.00019726,2]
[378610563,1754925059851,-460.0,0.00019726,2]
[378610564,1754925059861,-460.0,0.00019726,2]
[378610565,1754925059870,-460.0,0.00019726,2]
[378610566,1754925059880,-460.0,0.00019726,2]
[378610567,1754925059890,-514.75,0.00019726,2]
[378610568,1754925059900,-460.0,0.00019726,2]
[378610569,1754925059910,-460.0,0.00019726,2]
[378610570,1754925059920,-460.0,0.00019726,2]
[378610571,1754925059931,-460.0,0.00019726,2]
[378610572,1754925059941,-460.0,0.00019726,2]
[378610573,1754925059953,-460.0,0.00019726,2]
[378610574,1754925059962,-460.0,0.00019726,2]
[378610575,1754925059972,-757.2,0.00019726,2]
[378610576,1754925059982,-460.0,0.00019726,2]
[378610577,1754925059991,-460.0,0.00019726,2]
[378610578,1754925060004,-460.0,0.00019726,2]
[378610579,1754925060019,-460.0,0.00019726,2]
[378610580,1754925060028,-460.0,0.00019726,2]
[378610581,1754925060039,-460.0,0.00019726,2]
[378610582,1754925060050,-460.0,0.00019726,2]
[378610583,1754925060061,-460.0,0.00019726,2]
[378610584,1754925060071,-460.0,0.00019726,2]
[378610585,1754925060082,-466.30509657,0.00019726,2]
[378610586,1754925060092,-460.0,0.00019726,2]
[378610587,1754925060102,-460.0,0.00019726,2]
[378610588,1754925060113,-460.0,0.00019726,2]
[378610589,1754925060123,-599.11,0.00019726,2]
[378610590,1754925060133,-2142.58,0.00019726,2]
[378610591,1754925060143,-492.43620659,0.00019726,2]
[378610592,1754925060154,-551.36,0.00019726,2]
[378610593,1754925060164,-693.62,0.00019726,2]
[378610594,1754925060174,-460.0,0.00019726,2]
[378610595,1754925060184,-460.0,0.00019726,2]
[378610596,1754925060194,-606.26,0.00019726,2]
[378610597,1754925060207,-594.72990348,0.00019726,2]
[378610598,1754925060217,-460.0,0.00019726,2]
[378610599,1754925060227,-460.0,0.00019726,2]
[378610600,1754925060240,-460.0,0.00019726,2]
[378610601,1754925060250,-460.0,0.00019726,2]
[378610602,1754925060260,-536.94,0.00019726,2]
[378610603,1754925060270,-460.0,0.00019726,2]
[378610604,1754925060279,-460.0,0.00019726,2]
[378610605,1754925060290,-3873.14,0.00019726,2]
[378610606,1754925060299,-332.29911538,0.00019726,2]
[378610607,1754925060310,-608.49,0.00019726,2]
[378610608,1754925060320,-999.36,0.00019726,2]
[378610609,1754925060330,-460.0,0.00019726,2]
[378610610,1754925060339,-460.0,0.00019726,2]
[378610611,1754925060350,-460.0,0.00019726,2]
[378610612,1754925060365,-460.0,0.00019726,2]
[378610613,1754925060375,-460.0,0.00019726,2]
[378610614,1754925060385,-473.07,0.00019726,2]
[378610615,1754925060395,-603.24,0.00019726,2]
[378610616,1754925060405,-494.3600084,0.00019726,2]
[378610617,1754925060415,-460.0,0.00019726,2]
[378610618,1754925060425,-1305.06,0.00019726,2]
[378610619,1754925060435,-543.56,0.00019726,2]
[378610620,1754925060444,-460.0,0.00019726,2]
[378610621,1754925060458,-460.0,0.00019726,2]
[378610622,1754925060468,-460.0,0.00019726,2]
[378610623,1754925060479,-460.0,0.00019726,2]
[378610624,1754925060490,-823.99,0.00019726,2]
[378610625,1754925060500,-636.77,0.00019726,2]
[378610626,1754925060510,-504.65,0.00019726,2]
[378610627,1754925060525,-460.0,0.00019726,2]
[378610628,1754925060535,-460.0,0.00019726,2]
[378610629,1754925060544,-460.0,0.00019726,2]
[378610630,1754925060554,-460.0,0.00019726,2]
[378610631,1754925060563,-460.0,0.00019726,2]
[378610632,1754925060573,-999.47,0.00019726,2]
[378610633,1754925060582,-460.0,0.00019726,2]
[378610634,1754925060592,-460.0,0.00019726,2]
[378610635,1754925060602,-270.53943407,0.00019726,2]
[378610636,1754925060611,-262.48677597,0.00019726,2]
[378610637,1754925060620,-460.0,0.00019726,2]
[378610638,1754925060630,-460.0,0.00019726,2]
[378610639,1754925060639,-460.0,0.00019726,2]
[378610640,1754925060648,-460.0,0.00019726,2]
[378610641,1754925060658,-460.0,0.00019726,2]
[378610642,1754925060667,-460.0,0.00019726,2]
[378610643,1754925060677,-460.0,0.00019726,2]
[378610644,1754925060687,-460.0,0.00019726,2]
[378610645,1754925060697,-500.16,0.00019726,2]
[378610646,1754925060708,-460.0,0.00019726,2]
[378610647,1754925060718,-396.68883519,0.00019726,2]
[378610648,1754925060728,-636.57,0.00019726,2]
[378610649,1754925060738,-460.0,0.00019726,2]
[378610650,1754925060748,-461.09988612,0.00019726,2]
[378610651,1754925060758,-460.0,0.00019726,2]
[378610652,1754925060767,-460.0,0.00019726,2]
[378610653,1754925060776,-460.0,0.00019726,2]
[378610654,1754925060786,-460.0,0.00019726,2]
[378610655,1754925060796,-460.0,0.00019726,2]
[378610656,1754925060806,-460.0,0.00019726,2]
[378610657,1754925060816,-460.0,0.00019726,2]
[378610658,1754925060825,-554.96206601,0.00019726,2]
[378610659,1754925060835,-460.0,0.00019726,2]
[378610660,1754925060845,-460.0,0.00019726,2]
[378610661,1754925060855,-655.15,0.00019726,2]
[378610662,1754925060865,-460.0,0.00019726,2]
[378610663,1754925060875,-460.0,0.00019726,2]
[378610664,1754925060884,-460.0,0.00019726,2]
[378610665,1754925060894,-460.0,0.00019726,2]
[378610666,1754925060903,-460.0,0.00019726,2]
[378610667,1754925060913,-460.0,0.00019726,2]
[378610668,1754925060922,-460.0,0.00019726,2]
[378610669,1754925060932,-460.0,0.00019726,2]
[378610670,1754925060942,-886.86,0.00019726,2]
[378610671,1754925060953,-460.0,0.00019726,2]
[378610672,1754925060962,-488.58,0.00019726,2]
[378610673,1754925060972,-460.0,0.00019726,2]
[378610674,1754925060982,-500.0,0.00019726,2]
[378610675,1754925060992,-661.55,0.00019726,2]
[378610676,1754925061004,-460.0,0.00019726,2]
[378610677,1754925061015,-460.0,0.00019726,2]
[378610678,1754925061106,-460.0,0.00019726,2]
[378610679,1754925061116,-460.0,0.00019726,2]
[378610680,1754925061126,-460.0,0.00019726,2]
[378610681,1754925061135,-460.0,0.00019726,2]
[378610682,1754925061144,-460.0,0.00019726,2]
[378610683,1754925061153,-901.167646,0.00019726,2]
[378610684,1754925061162,-460.0,0.00019726,2]
[378610685,1754925061172,-460.0,0.00019726,2]
[378610686,1754925061181,-460.0,0.00019726,2]
[378610687,1754925061191,-901.167646,0.00019726,2]
[378610688,1754925061201,-1000.0,0.00019726,2]
[378610689,1754925061211,-460.0,0.00019726,2]
[378610690,1754925061220,-460.0,0.00019726,2]
[378610691,1754925061229,-460.0,0.00019726,2]
[378610692,1754925061239,-460.0,0.00019726,2]
[378610693,1754925061248,-475.63745788,0.00019726,2]
[378610694,1754925061258,-460.86815289,0.00019726,2]
[378610695,1754925061268,-460.0,0.00019726,2]
[378610696,1754925061277,-460.0,0.00019726,2]
[378610697,1754925061288,-460.0,0.00019726,2]
[378610698,1754925061298,-643.44,0.00019726,2]
[378610699,1754925061308,-460.0,0.00019726,2]
[378610700,1754925061318,-460.75,0.00019726,2]
[378610701,1754925061328,-460.0,0.00019726,2]
[378610702,1754925061337,-1665.69,0.00019726,2]
[378610703,1754925061347,-460.0,0.00019726,2]
[378610704,1754925061356,-460.0,0.00019726,2]
[378610705,1754925061366,-1329.26,0.00019726,2]
[378610706,1754925061376,-460.0,0.00019726,2]
[378610707,1754925061385,-460.0,0.00019726,2]
[378610708,1754925061395,-463.54142439,0.00019726,2]
[378610709,1754925061404,-460.0,0.00019726,2]
[378610710,1754925061413,-460.0,0.00019726,2]
[378610711,1754925061423,-460.0,0.00019726,2]
[378610712,1754925061433,-460.0,0.00019726,2]
[378610713,1754925061442,-460.0,0.00019726,2]
[378610714,1754925061454,-460.0,0.00019726,2]
[378610715,1754925061464,-460.0,0.00019726,2]
[378610716,1754925061473,-460.0,0.00019726,2]
[378610717,1754925061483,-460.0,0.00019726,2]
[378610718,1754925061492,-460.0,0.00019726,2]
[378610719,1754925061502,-460.0,0.00019726,2]
[378610720,1754925061512,-462.63817814,0.00019726,2]
[378610721,1754925061521,-460.0,0.00019726,2]
[378610722,1754925061530,-495.31,0.00019726,2]
[378610723,1754925061540,-812.23,0.00019726,2]
[378610724,1754925061549,-464.76,0.00019726,2]
[378610725,1754925061559,-460.0,0.00019726,2]
[378610726,1754925061568,-460.0,0.00019726,2]
[378610727,1754925061578,-460.0,0.00019726,2]
[378610728,1754925061587,-502.35,0.00019726,2]
[378610729,1754925061596,-595.52,0.00019726,2]
[378610730,1754925061605,-460.0,0.00019726,2]
[378610731,1754925061615,-460.0,0.00019726,2]
[378610732,1754925061625,-460.0,0.00019726,2]
[378610733,1754925061634,-460.0,0.00019726,2]
[378610734,1754925061643,-1249.64,0.00019726,2]
[378610735,1754925061652,-460.0,0.00019726,2]
[378610736,1754925061661,-543.5,0.00019726,2]
[378610737,1754925061671,-618.11,0.00019726,2]
[378610738,1754925061680,-460.0,0.00019726,2]
[378610739,1754925061689,-1280.1,0.00019726,2]
[378610740,1754925061701,-460.0,0.00019726,2]
[378610741,1754925061711,-460.0,0.00019726,2]
[378610742,1754925061720,-400.0,0.00019726,2]
[378610743,1754925061729,-460.0,0.00019726,2]
[378610744,1754925061739,-1043.92,0.00019726,2]
[378610745,1754925061748,-460.0,0.00019726,2]
[378610746,1754925061758,-1008.0,0.00019726,2]
[378610747,1754925061767,-2525.39,0.00019726,2]
[378610748,1754925061776,-460.0,0.00019726,2]
[378610749,1754925061785,-693.73,0.00019726,2]
[378610750,1754925061794,-493.08677408,0.00019726,2]
[378610751,1754925061804,-460.0,0.00019726,2]
[378610752,1754925061813,-460.0,0.00019726,2]
[378610753,1754925061823,-744.98,0.00019726,2]
[378610754,1754925061832,-460.0,0.00019726,2]
[378610755,1754925061842,-460.0,0.00019726,2]
[378610756,1754925061852,-460.0,0.00019726,2]
[378610757,1754925061862,-460.0,0.00019726,2]
[378610758,1754925061872,-204.753215,0.00019726,2]
[378610759,1754925061882,-887.98,0.00019726,2]
[378610760,1754925061892,-449.84872993,0.00019726,2]
[378610761,1754925061902,-460.0,0.00019726,2]
[378610762,1754925061911,-460.0,0.00019726,2]
[378610763,1754925061922,-460.0,0.00019726,2]
[378610764,1754925061931,-1073.03,0.00019726,2]
[378610765,1754925061940,-460.0,0.00019726,2]
[378610766,1754925061952,-460.0,0.00019726,2]
[378610767,1754925061962,-460.0,0.00019726,2]
[378610768,1754925061972,-460.0,0.00019726,2]
[378610769,1754925061981,-894.9,0.00019726,2]
[378610770,1754925061991,-627.85,0.00019726,2]
[378610771,1754925062002,-460.0,0.00019726,2]
[378610772,1754925062014,-460.0,0.00019726,2]
[378610773,1754925062024,-717.46,0.00019726,2]
[378610774,1754925062033,-460.0,0.00019726,2]
[378610775,1754925062043,-460.0,0.00019726,2]
[378610776,1754925062054,-460.0,0.00019726,2]
[378610777,1754925062064,-460.0,0.00019726,2]
[378610778,1754925062073,-460.0,0.00019726,2]
[378610779,1754925062083,-462.9413963,0.00019726,2]
[378610780,1754925062093,-460.0,0.00019726,2]
[378610781,1754925062102,-460.0,0.00019726,2]
[378610782,1754925062112,-460.0,0.00019726,2]
[378610783,1754925062121,-460.0,0.00019726,2]
[378610784,1754925062132,-460.0,0.00019726,2]
[378610785,1754925062151,-736.23117719,0.00019726,2]
[378610786,1754925062420,-162.05882281,0.00019726,2]
[378610787,1754925062430,-579.16,0.00019726,2]
[378610788,1754925062440,-460.0,0.00019726,2]
[378610789,1754925062452,-460.0,0.00019726,2]
[378610790,1754925062462,-460.0,0.00019726,2]
[378610791,1754925062472,-460.0,0.00019726,2]
[378610792,1754925062483,-460.0,0.00019726,2]
[378610793,1754925062493,-460.0,0.00019726,2]
[378610794,1754925062503,-1023.02,0.00019726,2]
[378610795,1754925062513,-460.0,0.00019726,2]
[378610796,1754925062523,-460.0,0.00019726,2]
[378610797,1754925062532,-2203.68,0.00019726,2]
[378610798,1754925062542,-198.114067,0.00019726,2]
[378610799,1754925062553,-460.0,0.00019726,2]
[378610800,1754925062573,-460.0,0.00019726,2]
[378610801,1754925062584,-47.49185186,0.00019726,2]
[378610802,1754925063113,-460.0,0.00019178,2]
[378610803,1754925063123,-1600.55814814,0.00019726,2]
[378610804,1754925063134,-460.0,0.00019726,2]
[378610805,1754925063144,-860.05,0.00019726,2]
[378610806,1754925063155,-460.0,0.00019726,2]
[378610807,1754925063165,-460.0,0.00019726,2]
[378610808,1754925063176,-198.114067,0.00019726,2]
[378610809,1754925063187,-460.0,0.00019726,2]
[378610810,1754925063197,-460.0,0.00019726,2]
[378610811,1754925063209,-460.0,0.00019726,2]
[378610812,1754925063220,-460.0,0.00019726,2]
[378610813,1754925063230,-370.37252543,0.00019726,2]
[378610817,1754925183431,300.0,0.00018652,2]
[378610821,1754925200519,220.8705643,0.00018652,2]
[378610823,1754925217073,10000.0,0.00018185,2]
[378610824,1754925228614,329.69635784,0.00018652,2]
[378610826,1754925262461,2024.39,0.00030137,120]
[378610827,1754925295798,151.0,0.000182,2]
[378610828,1754925296148,151.0,0.000173,2]
[378610829,1754925296594,151.0,0.000164,2]
[378610830,1754925296976,151.0,0.000155,2]
[378610832,1754925385213,-160.37135132,0.00018651,2]
[378610833,1754925387626,-139.62864868,0.00018651,2]
[378610834,1754925387652,-93.25025948,0.00018652,2]
[378610835,1754925390945,-272.75179334,0.00018652,2]
[378610837,1754925394282,-203.94665917,0.00018652,2]
[378610839,1754925396394,-209.3480552,0.00018652,2]
[378610840,1754925398160,-270.92086263,0.00018652,2]
[378610841,1754925403063,-241.98082196,0.00018651,2]
[378610842,1754925407799,-157.57316859,0.00018651,2]
[378610843,1754925409436,-267.17249111,0.00018651,2]
[378610844,1754925414955,-168.32223731,0.00018651,2]
[378610845,1754925416517,-224.62500086,0.00018651,2]
[378610846,1754925418108,-117.32628017,0.00018651,2]
[378610847,1754925418136,-54.85824992,0.00018652,2]
[378610848,1754925420265,-160.0,0.00018652,2]
[378610849,1754925420292,-147.09948275,0.00018652,2]
[378610850,1754925423392,-201.35822976,0.00018651,2]
[378610851,1754925426733,-98.64177024,0.00018651,2]
[378610852,1754925426760,-127.87652834,0.00018652,2]
[378610853,1754925426786,-88.2178332,0.00018652,2]
[378610854,1754925432718,-239.15024737,0.00018652,2]